[Event "87th Tata Steel Masters 2025"]
[White "Sarana,Alexey"]
[Black "Fedoseev,Vladimir"]
[Site "Wijk aan Zee"]
[Round "6.3"]
[Annotator "TA"]
[Result "1-0"]
[Date "2025.01.24"]
[WhiteElo "2677"]
[BlackElo "2717"]
[PlyCount "89"]
[TimeControl "60"]

{[%evp 9,89,10,17,24,32,18,32,21,24,0,0,-21,-7,-18,-16,-15,0,-3,0,0,0,-14,-14,-22,0,0,0,0,0,0,14,0,52,45,47,42,78,74,87,75,168,173,165,154,162,166,193,197,320,291,281,268,252,189,345,322,345,347,343,359,370,362,350,374,358,370,443,308,335,0,308,300,448,456,444,425,479,479,484,484,471,456]} 1. d4 {[%emt 0:0:3]} d5 {[%emt 0:0:24]} 2. c4 {[%emt 0:0:9]} e6 {[%emt 0:0:13]} 3. Nc3 {[%emt 0:0:5]} Be7 {[%emt 0:0:44]} 4. cxd5 {[%emt 0:0:26]} exd5 {[%emt 0:0:10]} 5. Bf4 {[%emt 0:0:6]} c6 {[%emt 0:0:8]} 6. Qc2 {[%emt 0:0:17] D31: Queen's Gambit Declined: Semi-Slav without ...Nf6 (+ Marshall Gambit and Noteboom) and Exchange Variation lines without ...Nf6.} Nf6 {[%emt 0:4:49]} 7. h3 {[%emt 0:0:49]} Qa5 {[%emt 0:6:31] was the old line (7...g6).} 8. e3 {[%emt 0:19:18] White is slightly better.} Ne4 {[%emt 0:1:11]} 9. Bd3 {[%emt 0:2:38]} Na6 $146 {[%emt 0:5:12]} (9... Bf5 10. Nf3 Nxc3 11. bxc3 Bxd3 12. Qxd3 Qa6 13. Ke2 Qxd3+ 14. Kxd3 Nd7 15. a4 b6 {½-½ Korobov,A (2652)-Bacrot,E (2725) Wch Blitz Riadh 2017 (5)} )10. Qa4 {[%emt 0:1:55] Repels Nb4} Qb6 {[%emt 0:17:28]} 11. Qb3 {[%emt 0:51:39]} (11. Nxd5 Qxb2 12. Bxe4 Qxa1+ 13. Ke2 Bd8 $17 )Bf5 {[%emt 0:22:23][%cal Yc8f5,Yf5g6,Yg6f7][%mdl 32]} 12. Bxe4 {[%emt 0:3:40]} dxe4 {[%emt 0:6:7]} 13. Nge2 {[%emt 0:0:8]} Nb4 {[%emt 0:1:40]} 14. O-O {[%emt 0:0:12]} O-O {[%emt 0:0:30]} 15. Qd1 {[%emt 0:3:4]} Bg6 {[%emt 0:0:41]} 16. Bg3 {[%emt 0:0:41]} f5 {[%emt 0:8:6]} 17. Nf4 {[%emt 0:2:33]} Bf7 {[%emt 0:0:4]} 18. a3 {[%emt 0:0:18]} Na6 {[%emt 0:0:4]} 19. b4 {[%emt 0:0:52]} Qd8 {[%emt 0:4:5]} 20. d5 {[%emt 0:2:48]} Qc8 {[%emt 0:10:10]} (20... Nc7 $11 )21. Rc1 $14 {[%emt 0:2:35] Black must now prevent dxc6.} Rd8 {[%emt 0:1:1]} 22. Qa4 $1 {[%emt 0:2:26]} c5 {[%emt 0:1:12][%cal Rc5b4] NOTEXT-51077 White (d5)} 23. Rfd1 $1 {[%emt 0:1:15] White is more active. White now steadily converts the win.} cxb4 {[%emt 0:6:59]} 24. Nb5 {[%emt 0:1:13]} Bc5 {[%emt 0:4:31]} (24... Nc5 $16 25. Qxb4 Bf8 )25. axb4 $18 {[%emt 0:4:40]} Nxb4 {[%emt 0:0:6][%cal Ya7a6]} 26. Bh4 $36 {[%emt 0:1:1][%mdl 2048] White has strong initiative.} Rd7 {[%emt 0:6:8][%cal Yb7b6] [#]} 27. Nxa7 $1 {[%emt 0:2:15][%mdl 512]} Qe8 {[%emt 0:2:38]} (27... Rxa7 $2 28. Qxa7 Na6 29. Qb6 $18 )(27... b6 28. Nxc8 )28. Rxc5 {[%emt 0:0:51]} Na6 {[%emt 0:0:24]} (28... b6 $142 29. Rc8 Qxc8 )29. Rcc1 {[%emt 0:3:18]} Rxa7 {[%emt 0:0:13] Black is weak on the dark squares} 30. d6 {[%emt 0:0:54]} h6 {[%emt 0:0:49]} 31. Be7 {[%emt 0:1:3]} b5 $2 {[%emt 0:0:20]} (31... Rxe7 $2 32. d7 $18 (32. Qd4 b6 $18 ))(31... b6 {was called for.} 32. Qc6 Rab7 )32. Qxb5 {[%emt 0:0:35]} Rxe7 {[%emt 0:0:5] [#]} 33. Qxe8+ {[%emt 0:0:9]} (33. Qxf5 Re5 34. Qc8 Qxc8 35. Rxc8+ Re8 36. Rxe8+ (36. d7 $2 Rxd7 37. Rxe8+ Bxe8 $19 )Bxe8 $14 )Rxe8 {[%emt 0:1:12]} 34. d7 {[%emt 0:0:2]} Nc7 {[%emt 0:0:30]} (34... Rd8 $2 35. Rc8 $18 )35. d8=Q {[%emt 0:0:42]} ({Not} 35. d8=B Ne6 36. Nxe6 Bxe6 $14 )Rxd8 {[%emt 0:0:6]} 36. Rxd8+ {[%emt 0:0:3]} Ne8 {[%emt 0:0:5]} 37. h4 {[%emt 0:2:7]} Kh7 {[%emt 0:0:41]} 38. Ne6 {[%emt 0:0:50]} Kg6 {[%emt 0:1:11]} 39. Nf4+ $2 {[%emt 0:0:16]} ({White should try} 39. Nd4 $18 )Kf6 $2 {[%emt 0:0:17][%mdl 8192]} (39... Kh7 $11 40. h5 Nf6 )40. Rcc8 {[%emt 0:0:39]} g5 {[%emt 0:0:40]} (40... Ke7 $142 41. Ra8 Rxa8 42. Rxa8 Kf6 )41. hxg5+ {[%emt 0:50:26] White is clearly winning.} hxg5 {[%emt 0:50:6]} 42. Nd5+ {[%emt 0:0:0]} Bxd5 {[%emt 0:0:0]} 43. Rxd5 {[%emt 0:0:0]} Ke6 {[%emt 0:0:0]} 44. Rcc5 {[%emt 0:0:0]} (44. Rxe8+ Kxd5 45. g4 f4 $14 )Nd6 {[%emt 0:0:0] [#]} 45. g4 $1 {[%emt 0:0:0] Weighted Error Value: White=0.16 (very precise) /Black=0.39  Loses game:     	---       	Black=1      Missed win:     	White=1     	---        Mistake:       	---       	Black=5      Inaccurate:     	White=1     	Black=1      OK:         	White=20    	Black=11     Best:        	White=6     	Black=4      Strong:       	White=2     	---} 1-0

[Event "87th Tata Steel Masters 2025"]
[White "Abdusattorov,Nodirbek"]
[Black "Gukesh,Dommaraju"]
[Site "Wijk aan Zee"]
[Round "6.4"]
[Annotator "TA"]
[Result "1/2-1/2"]
[Date "2025.01.24"]
[WhiteElo "2768"]
[BlackElo "2777"]
[PlyCount "131"]
[TimeControl "60"]

{[%evp 9,131,12,20,15,16,14,16,12,14,13,15,14,14,4,14,10,41,25,37,34,36,24,31,34,37,42,45,45,54,52,56,61,67,60,64,64,56,54,62,58,61,56,48,48,59,50,73,20,32,30,27,19,14,19,9,16,14,13,25,18,17,23,72,23,25,14,18,13,28,29,28,28,106,77,104,93,91,91,132,134,162,133,233,230,244,241,236,232,243,220,256,273,272,261,255,237,312,312,292,321,314,267,321,300,292,310,292,239,177,0,0,0,0,-8,-8,-8,0,0,0,-8,0,0,0,-8]} 1. e4 {[%emt 0:0:14]} e5 {[%emt 0:0:7]} 2. Nf3 {[%emt 0:0:15]} Nc6 {[%emt 0:0:6]} 3. Bc4 {[%emt 0:0:14]} Bc5 {[%emt 0:0:9]} 4. a4 {[%emt 0:0:19]} Nf6 {[%emt 0:1:37]} 5. d3 {[%emt 0:0:6]} d6 {[%emt 0:3:24]} 6. a5 {[%emt 0:0:32] C50: Hungarian Defence and Giuoco Pianissimo.} Bb4+ {[%emt 0:4:7]} 7. Bd2 {[%emt 0:0:10]} Bxd2+ {[%emt 0:0:6]} 8. Nbxd2 {[%emt 0:0:8]} O-O {[%emt 0:0:31]} 9. O-O {[%emt 0:0:11]} Ne7 $146 {[%emt 0:1:46]} (9... Bd7 10. c3 b6 11. b4 Ne7 12. Re1 Ng6 13. d4 c5 14. Bf1 Qc7 15. Qb3 b5 16. dxc5 dxc5 {½-½ Nepomniachtchi,I (2771)-Giri,A (2752) Saint Louis Rapid 2023 (2)} )10. c3 {[%emt 0:0:34]} Ng6 {[%emt 0:0:36]} 11. Re1 {[%emt 0:0:19]} h6 {[%emt 0:1:58]} 12. d4 {[%emt 0:3:44]} Nh7 {[%emt 0:1:23]} 13. Re3 {[%emt 0:14:28]} Ng5 {[%emt 0:11:48]} 14. Nxg5 {[%emt 0:6:36]} Qxg5 {[%emt 0:2:7]} 15. g3 {[%emt 0:0:9]} Bg4 {[%emt 0:18:51] [#]} 16. h4 $1 {[%emt 0:3:9]} Qh5 {[%emt 0:3:22]} (16... Qxe3 $2 17. Qc2 $18 (17. Qxg4 $2 Qxd2 18. Rd1 Qxb2 $19 )(17. Qc1 b5 $18 ))17. Qb3 {[%emt 0:9:53]} Rab8 {[%emt 0:4:59][%cal Yg6f4]} 18. Nf1 {[%emt 0:1:2]} Ne7 {[%emt 0:5:36]} 19. Nh2 {[%emt 0:3:54]} Bd7 {[%emt 0:0:32]} 20. Be2 {[%emt 0:1:32]} Qg6 {[%emt 0:0:5]} 21. dxe5 {[%emt 0:0:50]} dxe5 {[%emt 0:0:7]} 22. Rd1 {[%emt 0:0:12]} Be6 {[%emt 0:5:32]} 23. Qb5 {[%emt 0:11:2]} Nc6 {[%emt 0:0:8][%cal Ye7c6,Yc6d8,Yd8b7,Yb7d6][%mdl 32]} 24. a6 {[%emt 0:9:5]} Bc8 {[%emt 0:0:6][%cal Ye6c8,Yc8b7,Yb7c6][%mdl 32]} 25. h5 {[%emt 0:9:23]} Qf6 {[%emt 0:0:54]} 26. Rf3 {[%emt 0:1:40]} Qe6 {[%emt 0:17:36]} 27. Bc4 {[%emt 0:1:3]} Qe7 {[%emt 0:1:4]} 28. Qa4 {[%emt 0:9:53] White is much more active. The black rooks are passive.} (28. Rfd3 $16 )Nd8 $11 {[%emt 0:3:4]} 29. axb7 {[%emt 0:0:10]} Bxb7 {[%emt 0:2:40]} 30. Re3 {[%emt 0:3:16][%cal Yb2b4]} Bc6 {[%emt 0:2:29]} 31. Qa2 {[%emt 0:2:11][%cal Yh2f3]} (31. Qxa7 $2 Ra8 $19 (31... Rxb2 32. Nf3 $11 ))Nb7 {[%emt 0:0:28]} 32. b4 {[%emt 0:3:29]} (32. Qxa7 $2 Ra8 $19 )Nd6 {[%emt 0:2:53]} 33. Bd5 {[%emt 0:0:9]} Bxd5 {[%emt 0:0:5]} 34. Rxd5 {[%emt 0:0:10][%cal Yh2f3] Nf3! is in the air} Qe6 {[%emt 0:0:25]} 35. Re2 {[%emt 0:2:46][%cal Yg1g2]} c6 {[%emt 0:4:28]} (35... Rfc8 $11 )36. Ra5 {[%emt 0:0:1]} (36. Rc5 $16 )Qxa2 {[%emt 0:0:20]} 37. Raxa2 {[%emt 0:0:6][%cal Yh2f3]} Rfc8 {[%emt 0:4:10]} 38. Ng4 {[%emt 0:2:43]} c5 {[%emt 0:3:18]} 39. bxc5 {[%emt 0:0:12]} (39. Rxa7 Nb5 40. Ra5 Nxc3 $15 )Rxc5 {[%emt 0:2:15]} 40. Rxa7 {[%emt 0:0:6]} Rxc3 {[%emt 0:4:9]} (40... Rbc8 $11 )41. Rd7 {[%emt 0:58:6]} Ne8 {[%emt 0:9:26]} 42. Nxe5 {[%emt 0:0:0]} Nf6 {[%emt 0:0:10][%csl Yd7,Yh5]} 43. Re7 {[%emt 0:2:21]} (43. Rxf7 Re8 44. Rxf6 gxf6 $11 )Rb4 {[%emt 0:15:11]} 44. g4 {[%emt 0:0:0]} (44. Rxf7 $6 Rxe4 45. Rxe4 Nxe4 $11 )Rc5 {[%emt 0:10:11]} 45. f3 {[%emt 0:6:16]} (45. Nxf7 Kf8 46. Ra7 Rxe4 47. Rxe4 Nxe4 $16 )Kf8 {[%emt 0:2:5]} (45... Rb3 $16 )46. Rxf7+ $18 {[%emt 0:0:0]} Ke8 {[%emt 0:0:4]} 47. Nd3 $1 {[%emt 0:0:0]} (47. f4 Nxh5 (47... Rxe4 $2 48. Rxe4 Nxe4 49. Rxg7 $18 )(47... Rxe5 48. Rxf6 Rexe4 49. Rxe4+ Rxe4 50. Rf5 $11 )48. gxh5 Rxe5 $11 )Rb1+ {[%emt 0:0:7]} 48. Kg2 {[%emt 0:0:0]} Rc3 {[%emt 0:0:19]} 49. Ne5 {[%emt 0:0:0]} Rb5 {[%emt 0:1:28] [#]} 50. Rxg7 $1 {[%emt 0:0:0]} Rxe5 {[%emt 0:0:2]} 51. Ra2 {[%emt 0:0:26]} Kf8 {[%emt 0:2:35]} 52. Rg6 {[%emt 0:0:0][%csl Yf6,Yh6]} Nxe4 {[%emt 0:6:16] [#]} 53. Re2 $1 {[%emt 0:0:0]} (53. fxe4 Rxe4 54. Kh2 (54. Rxh6 Rxg4+ 55. Kf2 Kg7 $11 )Kf7 $14 )Rg5 {[%emt 0:0:1] [#]} 54. Rxh6 {[%emt 0:0:0]} (54. Rxe4 Rxg6 55. hxg6 Rc6 $14 )Nc5 {[%emt 0:3:7]} 55. Rc6 {[%emt 0:0:0]} Na4 {[%emt 0:3:32]} 56. Ra6 Nc5 57. Ra8+ Kf7 58. Ra7+ Kf6 59. Re8 (59. h6 $18 {Intending h7 and mate.} Rg8 60. Rc7 )Ne6 $11 {The position is equal.} 60. h6 Re5 $1 {Threatens to win with ...Nf4+.} 61. Ra6 Rc2+ 62. Kf1 $132 {[%mdl 2048] White is not holding back} Rc1+ 63. Kf2 $1 Rc2+ 64. Kf1 ({But not} 64. Kg3 Ree2 65. Raxe6+ Rxe6 66. g5+ Kf7 $15 )Rc1+ 65. Kf2 $1 {Black must now prevent h7.} Rc2+ 66. Kf1 {Black defended with fortune.   Weighted Error Value: White=0.10 (very precise) /Black=0.11 (very precise)   Missed win:     	White=1     	---        Mistake:       	White=2     	Black=3      Inaccurate:     	---       	Black=4      OK:         	White=30    	Black=20     Best:        	White=4     	Black=6      Strong:       	White=4     	Black=1} 1/2-1/2

[Event "87th Tata Steel Masters 2025"]
[White "Praggnanandhaa,Rameshbabu"]
[Black "Wei,Yi"]
[Site "Wijk aan Zee"]
[Round "6.5"]
[Annotator "TA"]
[Result "1/2-1/2"]
[Date "2025.01.24"]
[WhiteElo "2741"]
[BlackElo "2751"]
[PlyCount "115"]
[TimeControl "60"]

{[%evp 19,115,10,18,20,16,0,0,13,33,26,54,55,47,40,42,29,48,43,45,43,49,42,67,68,50,22,16,23,20,20,15,16,41,23,22,25,12,0,13,13,13,13,14,13,13,13,21,8,7,9,7,10,14,13,14,14,18,24,19,16,25,0,0,0,18,0,0,0,20,0,4,0,6,0,12,0,0,0,0,0,0,0,0,0,0,0,0,0,0,0,0,0,0,0,0,0,0,0]} 1. e4 {[%emt 0:1:13]} e5 {[%emt 0:0:14]} 2. Nf3 {[%emt 0:0:5]} Nc6 {[%emt 0:0:8]} 3. Bb5 {[%emt 0:0:5]} a6 {[%emt 0:0:10]} 4. Ba4 {[%emt 0:0:6]} Nf6 {[%emt 0:0:10]} 5. O-O {[%emt 0:0:9]} Nxe4 {[%emt 0:0:22]} 6. d4 {[%emt 0:0:43]} b5 {[%emt 0:0:10]} 7. Bb3 {[%emt 0:0:4]} d5 {[%emt 0:0:6]} 8. dxe5 {[%emt 0:0:6]} Be6 {[%emt 0:0:8]} 9. c3 {[%emt 0:0:4]} Be7 {[%emt 0:0:24]} 10. Re1 {[%emt 0:7:19]} O-O {[%emt 0:0:27]} 11. h3 {[%emt 0:1:14] C83: Open Ruy Lopez: 9 c3 Be7.} Qd7 {[%emt 0:20:41]} 12. Be3 {[%emt 0:1:1]} Na5 $146 {[%emt 0:6:57]} (12... Rad8 13. Nbd2 Nc5 14. Bc2 Bf5 15. Nb3 Bxc2 16. Qxc2 Ne6 17. a4 Qc8 18. axb5 axb5 {1-0 Kamsky,G (2663)-Csonka,B (2494) Titled Tuesday intern op 28th Mar Early blitz 2023 (6)} )13. Nbd2 {[%emt 0:6:58]} Nxb3 {[%emt 0:6:18]} 14. axb3 {[%emt 0:1:48]} c5 {[%emt 0:17:18]} 15. Nxe4 {[%emt 0:10:18]} dxe4 {[%emt 0:0:45]} 16. Qxd7 {[%emt 0:0:18]} Bxd7 {[%emt 0:0:5]} 17. Nd2 {[%emt 0:3:21]} Bc6 {[%emt 0:2:18]} 18. Bf4 $1 {[%emt 0:1:28]} f5 {[%emt 0:15:18]} 19. exf6 {[%emt 0:1:32]} Rxf6 {[%emt 0:0:5][%cal Yf8f6,Yf6e6,Ye6e7][%mdl 32]} 20. Bg5 {[%emt 0:6:8]} Re6 {[%emt 0:1:7]} 21. Bxe7 {[%emt 0:0:44]} Rxe7 {[%emt 0:0:4]} 22. b4 {[%emt 0:13:45]} cxb4 {[%emt 0:19:23]} 23. cxb4 {[%emt 0:0:24]} Bd5 {[%emt 0:8:51]} 24. Nf1 {[%emt 0:15:15]} Kf7 {[%emt 0:0:5]} 25. Ne3 {[%emt 0:3:31]} Be6 {[%emt 0:1:10]} 26. Red1 {[%emt 0:5:2]} Rd7 {[%emt 0:0:42]} 27. Rxd7+ {[%emt 0:2:45]} Bxd7 $11 {[%emt 0:0:5][%mdl 4096] Endgame KRB-KRN} 28. Rd1 {[%emt 0:0:25]} Ke6 {[%emt 0:1:15]} 29. Kh2 {[%emt 0:1:45]} Rf8 {[%emt 0:4:26]} 30. Kg3 {[%emt 0:0:35]} Bc6 {[%emt 0:0:59]} 31. Rc1 {[%emt 0:4:38]} Kd6 {[%emt 0:0:28]} 32. Rc5 {[%emt 0:4:43]} Bd7 {[%emt 0:0:7] Inhibits Nf5+.} 33. Rg5 {[%emt 0:2:36]} Rf7 {[%emt 0:0:14]} 34. Rd5+ {[%emt 0:0:49]} Ke6 {[%emt 0:0:5]} 35. Rd1 {[%emt 0:0:4]} Ke5 {[%emt 0:0:42]} 36. Rc1 {[%emt 0:0:36]} Rf6 {[%emt 0:3:33]} 37. Rc5+ {[%emt 0:2:48]} Kd6 {[%emt 0:0:0]} 38. Rd5+ {[%emt 0:0:17]} Ke6 {[%emt 0:0:0]} 39. Rd4 {[%emt 0:0:21]} Bc6 {[%emt 0:0:14]} 40. Rd8 {[%emt 0:0:37]} Rg6+ {[%emt 0:0:37] The position is equal.} 41. Kh2 {[%emt 0:52:2]} Rf6 {[%emt 0:7:0]} 42. Kg1 {[%emt 0:0:0]} Rf7 {[%emt 0:2:5]} 43. Rc8 {[%emt 0:0:0]} Bb7 {[%emt 0:5:19]} 44. Rb8 {[%emt 0:0:0]} Kd6 {[%emt 0:0:44]} 45. h4 {[%emt 0:0:0]} g6 {[%emt 0:0:42]} 46. Rg8 {[%emt 0:0:0]} Ke7 {[%emt 0:6:17]} 47. g4 {[%emt 0:0:0]} Bc6 {[%emt 0:0:42]} 48. Kg2 {[%emt 0:0:0]} Kd6 {[%emt 0:0:53]} 49. Rc8 {[%emt 0:0:0]} Kd7 {[%emt 0:0:21]} 50. Rh8 {[%emt 0:0:0]} Kc7 {[%emt 0:3:0]} 51. Kg1 {[%emt 0:0:0]} Kd7 {[%emt 0:0:13]} 52. Kf1 {[%emt 0:0:0]} Kc7 {[%emt 0:0:31]} 53. Rg8 {[%emt 0:0:0]} Kd7 {[%emt 0:0:54]} 54. Ke2 {[%emt 0:0:0]} Kc7 {[%emt 0:2:12]} 55. h5 {[%emt 0:4:20]} gxh5 {[%emt 0:0:15]} 56. gxh5 {[%emt 0:0:2]} Kd6 {[%emt 0:1:8]} 57. h6 {[%emt 0:3:1]} Ke5 {[%emt 0:5:31]} 58. Rg5+ {[%emt 0:5:23] Weighted Error Value: White=0.04 (flawless) /Black=0.04 (flawless)   Inaccurate:     	White=1     	Black=1      OK:         	White=14    	Black=22     Best:        	White=2     	---        Strong:       	White=1     	---} 1/2-1/2

[Event "87th Tata Steel Masters 2025"]
[White "Harikrishna,Pentala"]
[Black "Van Foreest,Jorden"]
[Site "Wijk aan Zee"]
[Round "6.6"]
[Annotator "TA"]
[Result "1/2-1/2"]
[Date "2025.01.24"]
[WhiteElo "2695"]
[BlackElo "2680"]
[PlyCount "107"]
[TimeControl "60"]

{[%evp 9,107,16,26,21,21,22,20,32,37,33,42,42,35,41,52,60,59,55,53,49,52,46,50,40,54,50,53,39,76,81,60,70,95,94,101,80,74,42,48,38,31,33,78,27,35,22,20,21,24,22,17,20,24,24,23,12,15,0,22,20,39,29,42,29,29,27,30,37,51,27,20,5,11,9,11,0,0,0,4,0,15,0,0,0,0,0,0,0,0,0,0,0,0,0,0,0,0,0,0,0]} 1. e4 {[%emt 0:0:8]} e5 {[%emt 0:0:8]} 2. Nf3 {[%emt 0:0:6]} Nc6 {[%emt 0:0:9]} 3. Bb5 {[%emt 0:0:6]} Nf6 {[%emt 0:0:8]} 4. d3 {[%emt 0:0:9]} d6 {[%emt 0:0:8]} 5. O-O {[%emt 0:0:14]} a6 {[%emt 0:0:14]} 6. Bxc6+ {[%emt 0:0:15] C66: Ruy Lopez: Steinitz Defence.} bxc6 {[%emt 0:0:7]} 7. Re1 {[%emt 0:0:40]} c5 {[%emt 0:0:36]} 8. c3 {[%emt 0:0:25]} Bb7 $146 {[%emt 0:0:42]} (8... Bg4 9. h3 Bh5 10. Nbd2 Be7 11. Nf1 O-O 12. Ng3 Bg6 13. Nh4 a5 14. Ngf5 Nd7 {0-1 Ivic,V (2610)-Nguyen,T (2663) EU-Cup 39th Vrnjacka Banja 2024 (6.6)} )9. Qc2 {[%emt 0:3:8]} Be7 {[%emt 0:0:8]} 10. d4 {[%emt 0:1:3]} cxd4 {[%emt 0:0:43]} 11. cxd4 {[%emt 0:0:6]} d5 {[%emt 0:1:28]} 12. Qb3 {[%emt 0:0:26]} Rb8 {[%emt 0:1:51]} 13. Qa4+ {[%emt 0:0:18]} (13. Nxe5 O-O $11 )(13. dxe5 Nxe4 14. Qa4+ Qd7 15. Qxd7+ Kxd7 $11 )Qd7 {[%emt 0:4:14]} 14. Qxd7+ {[%emt 0:0:22]} Nxd7 {[%emt 0:0:6]} 15. exd5 $1 {[%emt 0:2:25] White plays in the center} e4 {[%emt 0:16:56]} 16. Rxe4 {[%emt 0:15:7]} Nf6 {[%emt 0:0:52]} 17. Re2 {[%emt 0:11:41]} Nxd5 {[%emt 0:1:38]} 18. Nc3 {[%emt 0:1:47]} f6 {[%emt 0:17:18] Wards off Bg5} 19. Nxd5 {[%emt 0:3:33]} Bxd5 {[%emt 0:0:3]} 20. Bf4 {[%emt 0:0:17]} Kd7 {[%emt 0:0:3] [#]} 21. Bxc7 $1 {[%emt 0:2:49]} Rb5 {[%emt 0:2:58]} (21... Rbc8 22. Ba5 )22. Bf4 {[%emt 0:8:52]} g5 {[%emt 0:2:59]} 23. Be3 {[%emt 0:8:40]} (23. Bg3 h5 24. Rc1 Bd8 25. h4 )a5 {[%emt 0:5:10]} 24. Ne1 {[%emt 0:5:46][%cal Yf3e1,Ye1d3,Yd3c5,Yc5a4,Ya4c3][%mdl 32]} a4 {[%emt 0:1:2]} 25. Nd3 {[%emt 0:1:28]} Rhb8 {[%emt 0:9:46]} 26. Rd1 {[%emt 0:4:35]} (26. Ree1 $16 )Bxa2 $11 {[%emt 0:2:25] This pair of bishops is nice.} 27. Nc5+ {[%emt 0:1:59]} Ke8 {[%emt 0:7:41]} (27... Bxc5 28. dxc5+ Kc7 29. Bd4 $16 )28. Bc1 {[%emt 0:3:0][%cal Yb2b3] [#]} ({Of course not} 28. Nxa4 Bb3 29. Rde1 (29. Ra1 Ra8 $17 )Bxa4 30. Bxg5 Rxg5 $11 )Bc4 {[%emt 0:4:58]} 29. Re3 {[%emt 0:0:12][%cal Yd1e1] Rde1! is the strong threat.} Kf7 {[%emt 0:0:59]} 30. Nxa4 {[%emt 0:0:30]} Ra5 {[%emt 0:2:29]} 31. Nc3 {[%emt 0:2:18]} Ra1 {[%emt 0:1:21]} 32. Bd2 {[%emt 0:11:13]} Ra7 {[%emt 0:1:26]} 33. Bc1 {[%emt 0:4:39]} Ra1 {[%emt 0:0:52]} 34. Rde1 {[%emt 0:2:45]} Bd8 {[%emt 0:10:43]} 35. h3 {[%emt 0:1:26]} Kg6 {[%emt 0:0:42]} 36. d5 {[%emt 0:3:39][%cal Yh3h4]} Ba5 {[%emt 0:6:21]} 37. d6 {[%emt 0:1:27][%cal Yh3h4]} Rd8 {[%emt 0:1:33]} 38. Re4 {[%emt 0:1:4]} Bf7 {[%emt 0:0:10]} 39. Rd4 {[%emt 0:1:5]} Bb6 {[%emt 0:1:18]} 40. Rd2 {[%emt 0:2:56] The position is equal.} Bc5 {[%emt 0:4:12]} 41. d7 {[%emt 0:8:4]} Ra7 {[%emt 0:1:36]} 42. Rde2 {[%emt 0:5:59]} (42. Re4 {seems wilder.} Rc7 43. Rd3 Rdxd7 44. Rxd7 Rxd7 45. Be3 )Raxd7 {[%emt 0:0:14]} 43. Be3 {[%emt 0:0:9]} Bf8 {[%emt 0:1:19]} 44. Ra1 {[%emt 0:1:13]} Rb7 {[%emt 0:2:35]} 45. Rc2 {[%emt 0:6:42]} Be6 {[%emt 0:3:21]} 46. Ra6 {[%emt 0:9:9]} Bf5 {[%emt 0:0:57]} 47. Rd2 {[%emt 0:1:24]} Rxd2 {[%emt 0:3:1]} 48. Bxd2 {[%emt 0:0:6]} Kf7 {[%emt 0:5:55]} 49. Be3 {[%emt 0:15:56]} Rxb2 {[%emt 0:4:39]} 50. Bd4 {[%emt 0:1:5]} Be6 {[%emt 0:1:1]} 51. Ra7+ {[%emt 0:0:9]} Kg6 {[%emt 0:0:18]} 52. Ra6 {[%emt 0:0:42]} Kf7 {[%emt 0:0:23]} 53. Ra7+ {[%emt 0:0:25]} Kg6 {[%emt 0:0:9]} 54. Ra6 {[%emt 0:0:3] Weighted Error Value: White=0.06 (flawless) /Black=0.04 (flawless)   Mistake:       	White=1     	---        Inaccurate:     	White=1     	Black=2      OK:         	White=23    	Black=31     Best:        	---       	Black=2      Strong:       	White=1     	---} 1/2-1/2

[Event "87th Tata Steel Masters 2025"]
[White "Mendonca,Leon Luke"]
[Black "Warmerdam,Max"]
[Site "Wijk aan Zee"]
[Round "6.7"]
[Annotator "TA"]
[Result "1/2-1/2"]
[Date "2025.01.24"]
[WhiteElo "2639"]
[BlackElo "2646"]
[PlyCount "66"]
[TimeControl "60"]

{[%evp 13,66,23,23,22,19,13,21,8,17,4,11,6,10,12,10,5,9,0,0,0,0,0,0,0,0,0,-9,-6,0,-22,0,0,0,-20,-7,-12,0,0,0,0,0,0,0,0,0,0,0,0,0,0,0,0,41,27,22]} 1. c4 {[%emt 0:0:12]} e6 {[%emt 0:0:6]} 2. Nc3 {[%emt 0:0:31]} d5 {[%emt 0:0:7]} 3. d4 {[%emt 0:0:6]} Nf6 {[%emt 0:0:5]} 4. cxd5 {[%emt 0:0:31]} exd5 {[%emt 0:0:6]} 5. Bg5 {[%emt 0:0:8]} Be7 {[%emt 0:0:23]} 6. e3 {[%emt 0:0:30]} c6 {[%emt 0:0:11]} 7. Bd3 {[%emt 0:0:53]} Nbd7 {[%emt 0:0:11][%cal Yb8d7,Yd7f8,Yf8e6][%mdl 32]} 8. h3 {[%emt 0:7:54] D35: Queen's Gambit Declined: Exchange Variation.} Nf8 {[%emt 0:1:31]} 9. Nf3 $1 {[%emt 0:2:40] 9.Nf3 scores better than 9.Bf4.} Ne6 {[%emt 0:1:9]} 10. Bh4 {[%emt 0:0:55] The position is equal.} g6 {[%emt 0:2:6]} 11. O-O {[%emt 0:5:14][%cal Yb2b4]} O-O {[%emt 0:0:27]} 12. Rb1 {[%emt 0:19:27]} a5 {[%emt 0:8:30]} 13. Rc1 {[%emt 0:6:22]} Ng7 {[%emt 0:3:21]} 14. Qb3 {[%emt 0:1:17]} Ra7 {[%emt 0:2:46]} 15. Na4 {[%emt 0:1:24]} Bf5 $146 {[%emt 0:7:32]} (15... Re8 16. Nc5 Ne6 17. Nxe6 Bxe6 18. a3 Ne4 19. Bxe7 Rxe7 20. Qc2 Nd6 21. Rfe1 Bf5 22. Bxf5 Nxf5 {½-½ Del Rio de Angelis,S (2503)-Llorente Zaro,A (2444) ESP-chT CECLUB Honor 2021 (2.2)} )16. Be2 {[%emt 0:4:17]} Ne4 {[%emt 0:5:38]} 17. Bxe7 {[%emt 0:0:8]} Qxe7 {[%emt 0:0:4]} 18. Qb6 {[%emt 0:13:5]} Raa8 {[%emt 0:6:19]} 19. Nc5 {[%emt 0:0:59]} Nd6 {[%emt 0:1:48]} 20. Rc3 {[%emt 0:3:18]} Rfb8 {[%emt 0:5:9]} 21. Nd2 {[%emt 0:11:50]} Nc8 {[%emt 0:4:30]} 22. Qb3 {[%emt 0:0:6]} Ne6 {[%emt 0:1:2]} 23. Nxe6 {[%emt 0:2:36]} Bxe6 {[%emt 0:0:24]} 24. Rc5 {[%emt 0:1:3]} Qd8 {[%emt 0:4:29]} 25. a4 {[%emt 0:5:52]} Nd6 {[%emt 0:2:31]} 26. Ra1 {[%emt 0:0:17]} Ra7 {[%emt 0:2:55]} 27. Rcc1 {[%emt 0:0:26]} h5 {[%emt 0:4:36]} 28. Qc3 {[%emt 0:1:34]} Rba8 {[%emt 0:2:27]} 29. Qc5 {[%emt 0:3:17]} Kh7 {[%emt 0:6:27]} 30. Bd3 {[%emt 0:4:1]} Bf5 {[%emt 0:3:41]} 31. Bxf5 {[%emt 0:3:41]} Nxf5 {[%emt 0:0:45]} 32. Ra3 {[%emt 0:1:21]} Nh4 {[%emt 0:13:11]} 33. Rd1 {[%emt 0:4:23]} Nf5 {[%emt 0:8:38] Not much happened in this game.   Weighted Error Value: White=0.04 (flawless) /Black=0.04 (flawless)   Inaccurate:     	---       	Black=1      OK:         	White=13    	Black=10} 1/2-1/2